fUST/lending_fUST_20240116
["ID","MTS","AMOUNT","RATE_DAILY","PERIOD"]
[311793892,1705397237649,-12000.0,0.00018797,2]
[311793893,1705397237773,-12000.0,0.00018797,2]
[311793894,1705397237853,-1217.30161809,0.00018797,2]
[311793895,1705397237880,-10782.69838191,0.00018797,2]
[311793896,1705397237972,-2923.40762266,0.00018797,2]
[311793897,1705397238965,486.8732131,0.00018797,2]
[311793898,1705397239113,586.5929935,0.00018797,2]
[311793899,1705397239570,594.52127713,0.00018796,2]
[311793900,1705397239602,1030.38624899,0.00018797,2]
[311793901,1705397239750,679.38970446,0.00018797,2]
[311793902,1705397240229,1220.83585967,0.00018797,2]
[311793903,1705397240621,178.71425151,0.00018797,2]
[311793904,1705397244409,-12000.0,0.00018797,2]
[311793905,1705397244508,-3204.41172658,0.00018797,2]
[311793906,1705397245943,160.83818793,0.00018797,2]
[311793907,1705397246299,260.84774235,0.00018797,2]
[311793908,1705397247048,947.8761411,0.00017966,2]
[311793909,1705397248092,-255.36889205,0.00018797,2]
[311793910,1705397248199,-5.21161004,0.00018797,2]
[311793911,1705397248226,-250.15728201,0.00018797,2]
[311793912,1705397248334,-255.36889205,0.00018797,2]
[311793913,1705397248464,-255.36889205,0.00018797,2]
[311793914,1705397248575,-255.36889205,0.00018797,2]
[311793915,1705397248705,-12000.0,0.00018797,2]
[311793916,1705397248816,-2881.17837026,0.00018797,2]
[311793917,1705397249479,3481.93045804,0.00018797,2]
[311793918,1705397249699,2032.26842412,0.00018797,2]
[311793919,1705397249732,3604.62274758,0.00017834,2]
[311793920,1705397249758,3115.29357082,0.00017834,2]
[311793921,1705397249910,212.88441865,0.00018797,2]
[311793922,1705397250577,1252.01139802,0.00018797,2]
[311793923,1705397250803,154.98450155,0.00018796,2]
[311793924,1705397251008,1991.47489768,0.00018797,2]
[311793925,1705397251041,460.904083,0.00017834,2]
[311793926,1705397251529,200.29041192,0.00018797,2]
[311793927,1705397252930,165.24450031,0.00018797,2]
[311793928,1705397252963,322.44407959,0.00018797,2]
[311793929,1705397253592,-12000.0,0.00018797,2]
[311793930,1705397253868,-1706.10600457,0.00018797,2]
[311793931,1705397254320,2036.92665064,0.00018796,2]
[311793932,1705397254477,8256.96734479,0.00018797,2]
[311793933,1705397254503,3501.83675285,0.00018797,2]
[311793934,1705397254977,154.98450155,0.00018796,2]
[311793935,1705397255759,678.95347614,0.00018797,2]
[311793936,1705397256639,178.71425151,0.00018797,2]
[311793937,1705397256715,486.66015511,0.00018797,2]
[311793938,1705397257254,-789.56699421,0.00018797,2]
[311793939,1705397257495,-16.11361213,0.00018797,2]
[311793940,1705397257522,-773.45338208,0.00018797,2]
[311793941,1705397257619,-9083.58955832,0.00018797,2]
[311793942,1705397257645,-594.52127713,0.00018797,2]
[311793943,1705397258387,156.78271178,0.00018797,2]
[311793944,1705397259933,614.57552858,0.00018797,2]
[311793945,1705397259960,1080.46394025,0.00018797,2]
[311793946,1705397260021,2711.18525978,0.00018797,2]
[311793947,1705397260054,6657.81987578,0.00018796,2]
[311793948,1705397260081,8546.5918508,0.00018796,2]
[311793949,1705397261582,1058.85466145,0.00018796,2]
[311793950,1705397261610,1058.85466145,0.00018796,2]
[311793951,1705397262100,-12000.0,0.00018796,2]
[311793952,1705397262376,-5562.61698092,0.00018796,2]
[311793953,1705397262402,-170.40971706,0.00018796,2]
[311793954,1705397262428,-6266.97330202,0.00018796,2]
[311793955,1705397262517,-7016.50518113,0.00018796,2]
[311793956,1705397262981,286.06712723,0.00018796,2]
[311793957,1705397265952,160.64038991,0.00018796,2]
[311793959,1705397267076,403.00506807,0.00018796,2]
[311793960,1705397273842,155.0,0.00018796,2]
[311793961,1705397274265,155.0,0.00018796,2]
[311793962,1705397275359,902.59064044,0.00018796,2]
[311793963,1705397275584,521.56474162,0.00018796,2]
[311793964,1705397275943,1695.03946883,0.00018796,2]
[311793965,1705397276007,166.80011479,0.00018796,2]
[311793966,1705397276040,537.78726798,0.00018796,2]
[311793967,1705397276067,12000.0,0.00018796,2]
[311793968,1705397276095,2666.6244586,0.00018796,2]
[311793969,1705397276164,9333.3755414,0.00018796,2]
[311793970,1705397276190,6876.17507751,0.00018796,2]
[311793971,1705397276217,2675.24698567,0.00018796,2]
[311793972,1705397276627,208.59420041,0.00018796,2]
[311793973,1705397277287,526.17799726,0.00018796,2]
[311793974,1705397279593,594.04072003,0.00018796,2]
[311793975,1705397280037,2711.18525978,0.00018796,2]
[311793976,1705397282935,173.86579774,0.00018697,2]
[311793977,1705397283059,370.59440421,0.00018796,2]
[311793978,1705397289326,901.75757888,0.00018796,2]
[311793979,1705397289590,521.56474162,0.00018796,2]
[311793980,1705397289845,155.0,0.00018796,2]
[311793981,1705397290157,155.0,0.00018777,2]
[311793982,1705397291094,175.0415776,0.00018796,2]
[311793983,1705397291959,1143.85346407,0.00018796,2]
[311793984,1705397292261,242.84740802,0.00018796,2]
[311793985,1705397293292,335.7826251,0.00018796,2]
[311793986,1705397294039,1109.44723961,0.00018796,2]
[311793988,1705397298523,-12000.0,0.00018796,2]
[311793989,1705397298831,-2094.96448697,0.00018796,2]
[311793990,1705397298857,-310.24630459,0.00018796,2]
[311793991,1705397298883,-505.34523165,0.00018796,2]
[311793992,1705397298909,-9089.44397679,0.00018796,2]
[311793993,1705397298959,-9795.35362779,0.00018796,2]
[311793994,1705397298985,-1077.70401168,0.00018797,2]
[311793995,1705397299011,-309.98463456,0.00018797,2]
[311793996,1705397299037,-260.84774235,0.00018797,2]
[311793997,1705397299063,-556.10998362,0.00018797,2]
[311793998,1705397299098,-12000.0,0.00018797,2]
[311793999,1705397299187,-1149.99602095,0.00018797,2]
[311794000,1705397299216,-2028.21974575,0.00018797,2]
[311794001,1705397299242,-2036.92665064,0.00018797,2]
[311794002,1705397299267,-881.44260834,0.00018797,2]
[311794003,1705397299292,-156.78271178,0.00018797,2]
[311794004,1705397299319,-1292.34076145,0.00018797,2]
[311794005,1705397299345,-155.0,0.00018797,2]
[311794006,1705397299371,-483.36652394,0.00018797,2]
[311794007,1705397299396,-286.06712723,0.00018797,2]
[311794008,1705397300851,3529.85784992,0.00017811,2]
[311794009,1705397300880,7939.83930538,0.00017811,2]
[311794010,1705397306783,-238.6795451,0.00018796,2]
[311794011,1705397306940,-4.87101112,0.00018796,2]
[311794012,1705397307683,233.80853398,0.00018796,2]
[311794013,1705397307710,238.6795451,0.00018796,2]
[311794014,1705397308041,-49.07666254,0.00018796,2]
[311794015,1705397308067,-216.97116842,0.00018796,2]
[311794016,1705397308148,155.41099431,0.00018776,2]
[311794017,1705397311478,-288.49432091,0.00018795,2]
[311794018,1705397311644,-5.8876392,0.00018795,2]
[311794019,1705397312493,-6963.58425113,0.00018796,2]
[311794020,1705397312663,-142.11396431,0.00018796,2]
[311794021,1705397312690,-2036.92665064,0.00018796,2]
[311794022,1705397312981,309.65411041,0.00018796,2]
[311794023,1705397313435,4474.88952577,0.00018796,2]
[311794024,1705397313462,8959.77236876,0.00018796,2]
[311794025,1705397313489,271.44411004,0.00018796,2]
[311794026,1705397317066,-298.45173362,0.00018796,2]
[311794027,1705397317092,-11701.54826638,0.00018796,2]
[311794028,1705397317358,-7183.2493382,0.00018796,2]
[311794029,1705397317385,-1290.85339703,0.00018796,2]
[311794030,1705397362141,-1368.223,0.00018797,2]
[311794031,1705397362531,-2135.32596021,0.00018797,2]
[311794032,1705397362683,-43.57808082,0.00018797,2]
[311794033,1705397369292,280.0,0.00022745,7]
[311794034,1705397386558,-511.13344679,0.00018797,2]
[311794035,1705397386730,-10.43129483,0.00018797,2]
[311794036,1705397388839,500.70215196,0.00018797,2]
[311794037,1705397388865,511.13344679,0.00018797,2]
[311794038,1705397389262,-1004.58923085,0.00018797,2]
[311794039,1705397389507,-20.50182104,0.00018797,2]
[311794079,1705397438006,-360.92877818,0.00018798,2]
[311794081,1705397438016,-228.61657853,0.00018798,2]
[311794083,1705397438026,-210.72302164,0.00018798,2]
[311794085,1705397438035,-155.75399343,0.00018798,2]
[311794087,1705397438044,-874.3719583,0.00018798,2]
[311794089,1705397438053,-156.87862757,0.00018798,2]
[311794092,1705397438072,-755.7356769,0.00018798,2]
[311794094,1705397438084,-837.72024292,0.00018798,2]
[311794160,1705397440872,-320.55228052,0.00018798,2]
[311794161,1705397440882,-155.27937595,0.00018799,2]
[311794162,1705397440892,-1927.28877342,0.00018809,2]
[311794163,1705397441000,-3617.32575231,0.00018809,2]
[311794164,1705397441009,-252.61863888,0.00018826,2]
[311794165,1705397441019,-229.9277877,0.00018828,2]
[311794166,1705397441029,-155.16973362,0.00018834,2]
[311794167,1705397441038,-154.98450155,0.00018844,2]
[311794168,1705397441048,-154.98450155,0.00018844,2]
[311794169,1705397441058,-166.49194019,0.00018844,2]
[311794170,1705397441068,-2705.10797595,0.00018846,5]
[311794171,1705397441077,-1241.19175274,0.00018846,2]
[311794172,1705397441087,-4834.12740382,0.00019754,2]
[311794173,1705397441097,-173.86579774,0.0001985,2]
[311794174,1705397441106,-521.09377722,0.00019949,2]
[311794175,1705397441116,-470.14941068,0.0001995,2]
[311794176,1705397441125,-1428.67774032,0.0001995,2]
[311794177,1705397441134,-521.56474162,0.00019951,2]
[311794178,1705397441144,-243.29884661,0.00019952,2]
[311794179,1705397441153,-174.54904627,0.00019952,2]
[311794180,1705397441162,-13661.50936311,0.00019952,2]
[311794181,1705397441172,-391.10265689,0.00019952,2]
[311794182,1705397441184,-1223.03647222,0.00019952,2]
[311794205,1705397443190,-9293.52360094,0.00019952,2]
[311794206,1705397443199,-154.98450155,0.00019953,2]
[311794207,1705397443210,-1576.45984699,0.00019953,2]
[311794208,1705397443219,-401.04668479,0.00019953,2]
[311794209,1705397443229,-6042.00469807,0.00019953,2]
[311794210,1705397443238,-2145.89822992,0.00019953,2]
[311794211,1705397443248,-626.30070333,0.00019954,2]
[311794212,1705397443264,-1016.97783291,0.00019954,2]
[311794243,1705397484304,155.0,0.00017955,3]
[311794246,1705397583420,-246.3473914,0.00018898,2]
[311794247,1705397583443,-155.0,0.00018899,2]
[311794248,1705397583468,-1252.01139802,0.00018899,2]
[311794249,1705397583490,-1636.42768632,0.000189,2]
[311794250,1705397583513,-3126.09,0.00019938,3]
[311794251,1705397583534,-88.12352426,0.00019938,3]
[311794252,1705397610308,155.0,0.00017943,3]
[311794253,1705397669483,280.0,0.00022929,7]
[311794257,1705397809894,976.44607626,0.00017053,2]
[311794260,1705397933653,-3932.99356873,0.00018669,2]
[311794261,1705397933777,-80.26517487,0.00018669,2]
[311794264,1705397969822,280.0,0.00022928,7]
[311794274,1705398114221,-12000.0,0.00018233,2]
[311794275,1705398114500,-12000.0,0.00018233,2]
[311794276,1705398114646,-900.0,0.00018233,2]
[311794277,1705398119946,-307.15082678,0.00018797,2]
[311794278,1705398120082,-6.26838422,0.00018797,2]
[311794280,1705398182960,-3757.81409977,0.00018797,2]
[311794281,1705398183173,-76.69008367,0.00018797,2]
[311794285,1705398252723,-668.11910879,0.00018797,2]
[311794286,1705398252850,-13.63508385,0.00018797,2]
[311794288,1705398268665,200.0,0.00021446,7]
[311794289,1705398268696,-668.11910879,0.00018797,2]
[311794290,1705398268897,-13.63508385,0.00018797,2]
[311794293,1705398286741,-668.11910879,0.00018797,2]
[311794294,1705398286864,-13.63508385,0.00018797,2]
[311794296,1705398306843,-668.11910879,0.00018797,2]
[311794297,1705398306942,-13.63508385,0.00018797,2]
[311794298,1705398326710,-668.11910879,0.00018797,2]
[311794299,1705398326905,-13.63508385,0.00018797,2]
[311794301,1705398346838,-668.11910879,0.00018797,2]
[311794302,1705398347128,-13.63508385,0.00018797,2]
[311794303,1705398367152,-668.11910879,0.00018797,2]
[311794304,1705398367456,-13.63508385,0.00018797,2]
[311794305,1705398380741,-668.11910879,0.00018797,2]
[311794306,1705398381009,-13.63508385,0.00018797,2]
[311794307,1705398398748,-668.11910879,0.00018797,2]
[311794308,1705398399054,-13.63508385,0.00018797,2]
[311794309,1705398420758,-668.11910879,0.00018797,2]
[311794310,1705398421055,-13.63508385,0.00018797,2]
[311794311,1705398436692,-668.11910879,0.00018797,2]
[311794312,1705398436793,-13.63508385,0.00018797,2]
[311794313,1705398454715,-668.11910879,0.00018797,2]
[311794314,1705398454902,-13.63508385,0.00018797,2]
[311794315,1705398473116,-668.11910879,0.00018797,2]
[311794316,1705398473446,-13.63508385,0.00018797,2]
[311794317,1705398512770,-1379.3208582,0.00018796,2]
[311794318,1705398512796,-640.53269162,0.00018797,2]
[311794319,1705398513056,-41.22150102,0.00018797,2]
[311794320,1705398532645,-668.11910879,0.00018797,2]
[311794321,1705398532878,-13.63508385,0.00018797,2]
[311794322,1705398549104,-475.37361956,0.00018731,2]
[311794323,1705398549273,-9.70150244,0.00018731,2]
[311794324,1705398552705,-668.11910879,0.00018783,2]
[311794325,1705398552872,-617.07056941,0.00018783,2]
[311794326,1705398552900,-51.04853938,0.00018797,2]
[311794327,1705398552978,-630.70565326,0.00018797,2]
[311794329,1705398563102,-1321.4368137,0.000189,2]
[311794330,1705398570697,-668.11910879,0.00018797,2]
[311794331,1705398570979,-13.63508385,0.00018797,2]
[311794333,1705398588727,-668.11910879,0.00018797,2]
[311794334,1705398588875,-13.63508385,0.00018797,2]
[311794335,1705398608914,-797.63931992,0.00018797,2]
[311794336,1705398609022,-16.27835347,0.00018797,2]
[311794353,1705398633100,-154.98450155,0.00018898,2]
[311794355,1705398633109,-154.98450155,0.00018899,2]
[311794357,1705398633118,-445.43705967,0.000189,2]
[311794366,1705398633224,-167.394408,0.00019178,2]
[311794368,1705398633234,-154.98450155,0.00019485,2]
[311794371,1705398633246,-2913.23200301,0.00019485,2]
[311794373,1705398633259,-12291.17972357,0.00019485,2]
[311794374,1705398633271,-154.98450155,0.00019486,2]
[311794375,1705398633281,-19846.52895814,0.00019486,2]
[311794376,1705398633291,-329.183235,0.0001949,2]
[311794377,1705398633302,-834.22643859,0.00019492,2]
[311794379,1705398633312,-521.09377722,0.00019497,2]
[311794381,1705398633322,-1110.06471972,0.000195,2]
[311794383,1705398633333,-338.46557467,0.00019852,2]
[311794385,1705398633345,-202.97368975,0.00019937,2]
[311794387,1705398633355,-166.80011479,0.00019937,2]
[311794389,1705398633365,-3741.87136759,0.00019937,2]
[311794391,1705398633374,-246.94346434,0.00019938,2]
[311794393,1705398633383,-2130.37501297,0.00019938,2]
[311794395,1705398633394,-1250.98913617,0.00019938,2]
[311794397,1705398633404,-2233.06,0.00019938,3]
[311794399,1705398633414,-2533.28,0.00019938,3]
[311794401,1705398633423,-2421.22,0.00019938,3]
[311794403,1705398633432,-36924.85068782,0.00019948,2]
[311794405,1705398633442,-1240.5015561,0.0001995,2]
[311794407,1705398633451,-1291.20960329,0.00019951,2]
[311794409,1705398633462,-1257.08915301,0.00019951,2]
[311794411,1705398633472,-37564.10075524,0.00019951,2]
[311794413,1705398633482,-4047.19041287,0.00019951,2]
[311794415,1705398633492,-1142.90076131,0.00019951,2]
[311794417,1705398633501,-9766.81423315,0.00019952,2]
[311794419,1705398633510,-380.98528004,0.00019953,2]
[311794421,1705398633519,-200.66690783,0.00019953,2]
[311794423,1705398633529,-809.67760537,0.00019954,2]
[311794426,1705398633541,-1571.7347403,0.00019954,2]
[311794558,1705398641132,-2115.64278898,0.00019954,2]
[311794559,1705398641145,-355.93473173,0.00019954,2]
[311794560,1705398641154,-294.91773688,0.00019954,2]
[311794561,1705398641165,-331.2180121,0.00019954,2]
[311794562,1705398641176,-625.2662504,0.00019955,2]
[311794563,1705398641186,-469.54511318,0.00019955,2]
[311794564,1705398641195,-126.76382444,0.00019956,2]
[311794585,1705398643722,-28.87688946,0.00019956,2]
[311794586,1705398643731,-1150.65008109,0.00019956,2]
[311794587,1705398643741,-266.94660645,0.0002,2]
[311794588,1705398643750,-170.45968232,0.0002,2]
[311794589,1705398643760,-156.54383332,0.0002,2]
[311794590,1705398643769,-849.23126021,0.0002,2]
[311794591,1705398643778,-300.0,0.0002,2]
[311794592,1705398643788,-2081.1114357,0.0002,2]
[311794593,1705398643797,-500.0,0.000211,2]
[311794594,1705398643806,-166.735945,0.00021918,2]
[311794595,1705398643815,-166.735945,0.00022773,2]
[311794596,1705398643825,-335.29204067,0.00023114,2]
[311794652,1705399169777,280.0,0.00022848,7]
[311794667,1705399391205,-245.0,0.00018573,2]
[311794668,1705399391338,-5.0,0.00018573,2]
[311794674,1705399475299,784.7821666,0.00017866,2]
[311794677,1705399503993,315.80049167,0.0003,120]
[311794680,1705399586849,837.177441,0.00017857,2]
[311794685,1705399685622,2322.73093908,0.000231,6]
[311794692,1705399718349,-561.04928644,0.00018749,2]
[311794693,1705399718382,-1241.19175274,0.00018749,2]
[311794694,1705399718413,-148.92345161,0.0001875,2]
[311794695,1705399718459,-39.81968348,0.0001875,2]
[311794696,1705399722791,24900.0,0.00017847,2]
[311794705,1705399769892,280.0,0.00022794,7]
[311794714,1705399778934,1746.7747658,0.00017841,2]
[311794715,1705399806887,-594.52127713,0.00018267,2]
[311794716,1705399806914,-155.0,0.00018267,2]
[311794717,1705399806940,-36.78121859,0.00018268,2]
[311794718,1705399807082,-171.04698971,0.00018268,2]
[311794719,1705399815381,-255.6307875,0.00018267,2]
[311794720,1705399815417,-5.21695485,0.00018267,2]
[311794795,1705399832835,-164.5326913,0.00018735,2]
[311794796,1705399832845,-181.38411565,0.00018833,2]
[311794797,1705399832854,-594.98421659,0.00018833,2]
[311794798,1705399832863,-260.62471679,0.00018833,2]
[311794799,1705399832873,-155.0,0.00018834,2]
[311794800,1705399832882,-3741.87136759,0.00018834,2]
[311794801,1705399832891,-561.04928644,0.00018835,2]
[311794802,1705399832902,-861.6446352,0.00018835,2]
[311794803,1705399832911,-1380.58447264,0.00018835,2]
[311794804,1705399832920,-18884.79760458,0.00018835,2]
[311794805,1705399832929,-15204.41172658,0.00018835,2]
[311794806,1705399832938,-265.17316285,0.00018836,2]
[311794807,1705399832948,-12617.24547583,0.00018836,2]
[311794822,1705399838366,-1088.86052874,0.00018836,2]
[311794824,1705399838376,-1245.48397377,0.0001884,2]
[311794825,1705399838386,-155.28637108,0.0001885,2]
[311794827,1705399838396,-298.50922313,0.00018856,2]
[311794828,1705399838406,-3010.12944344,0.00018867,2]
[311794829,1705399838416,-521.09377722,0.00018885,2]
[311794830,1705399838427,-643.39406713,0.00018892,2]
[311794831,1705399838438,-326.39660123,0.000189,2]
[311794870,1705399841139,-1196.06880385,0.000189,2]
[311794991,1705399843503,-406.4750466,0.000189,2]
[311794992,1705399843514,-805.90023028,0.00019,2]
[311794993,1705399843528,-774.59757444,0.00019,2]
[311794994,1705399843538,-133.02315663,0.00019178,2]
[311794995,1705399843550,-37.23422837,0.00019178,2]
[311794996,1705399843559,-1112.81666709,0.000195,2]
[311794997,1705399843569,-162.42558552,0.00019953,2]
[311794998,1705399843579,-849.23126021,0.0002,2]
[311794999,1705399843588,-610.63576923,0.00020577,2]
[311795000,1705399843597,-200.0,0.00020722,2]
[311795001,1705399843607,-4724.69088449,0.00020786,2]
[311795002,1705399843616,-309.9380124,0.00020997,2]
[311795003,1705399843626,-1990.69990831,0.00020997,2]
[311795004,1705399843635,-3228.41581946,0.00021,2]
[311795005,1705399843644,-360.21831018,0.000211,2]
[311795028,1705400070298,280.0,0.00022854,7]
[311795036,1705400144706,418.58872,0.00017886,2]
[311795037,1705400164759,24900.0,0.00017885,2]
[311795045,1705400363340,3000.0,0.00017869,2]
[311795046,1705400370105,280.0,0.00022823,7]
[311795051,1705400415793,-196.50664179,0.00018861,5]
[311795185,1705400435003,-4381.9,0.0001998,3]
[311795186,1705400435027,-876.39,0.0001999,3]
[311795187,1705400488290,-245.0,0.00018129,2]
[311795188,1705400488617,-5.0,0.00018129,2]
[311795195,1705400670157,280.0,0.00022793,7]
[311795196,1705400683625,24900.0,0.00017981,2]
[311795197,1705400710197,209.29436,0.00017851,2]
[311795198,1705400774016,75776.78059057,0.00018,2]
[311795203,1705400827199,5136.25940385,0.0001746,2]
[311795226,1705400874973,3846.08197579,0.0001746,2]
[311795227,1705400890903,155.75210725,0.0001746,2]
[311795228,1705400892258,154.98450155,0.0001746,2]
[311795229,1705400970967,280.0,0.0002276,7]
[311795281,1705401033470,-260.84774235,0.00018806,2]
[311795283,1705401033480,-902.59064044,0.00018807,2]
[311795284,1705401033489,-20853.11941142,0.00018807,2]
[311795286,1705401033498,-19846.52895814,0.00018807,2]
[311795287,1705401033507,-155.0,0.00018808,2]
[311795288,1705401033516,-286.06712723,0.00018808,2]
[311795289,1705401033526,-3481.93045804,0.00018808,2]
[311795290,1705401033534,-265.17316285,0.00018809,2]
[311795292,1705401033544,-561.04928644,0.00018809,2]
[311795293,1705401033554,-155.0,0.00018809,2]
[311795295,1705401033563,-13706.10600457,0.0001881,2]
[311795296,1705401033572,-155.0,0.00018862,2]
[311795297,1705401033581,-246.3473914,0.00018866,2]
[311795299,1705401033591,-1252.01139802,0.00018866,2]
[311795301,1705401033601,-521.09377722,0.00018897,2]
[311795302,1705401033610,-3121.92324585,0.000189,2]
[311795304,1705401033620,-1713.89686914,0.00019,2]
[311795306,1705401033629,-167.879947,0.00019178,2]
[311795308,1705401033639,-651.07067277,0.00019661,2]
[311795310,1705401033648,-4381.9,0.0001998,3]
[311795312,1705401033658,-5258.29,0.0001999,3]
[311795314,1705401033667,-267.31248828,0.0002,2]
[311795316,1705401033676,-1196.44070962,0.0002,2]
[311795318,1705401033685,-155.13713585,0.00020577,2]
[311795320,1705401033694,-200.0,0.00020691,2]
[311795321,1705401033703,-327.11193919,0.00021,2]
[311795323,1705401033713,-155.58106188,0.00021098,2]
[311795325,1705401033723,-200.0,0.000211,2]
[311795326,1705401033732,-300.0,0.000211,2]
[311795327,1705401033741,-155.19550799,0.000211,2]
[311795329,1705401033750,-448.12773295,0.000211,2]
[311795330,1705401033759,-10280.02525619,0.000211,2]
[311795332,1705401033769,-1823.10005026,0.000211,2]
[311795334,1705401033778,-500.0,0.000211,2]
[311795336,1705401033788,-327.61661653,0.00021747,2]
[311795337,1705401033797,-466.65800678,0.00021845,2]
[311795338,1705401033806,-198.86702102,0.00021845,2]
[311795339,1705401033815,-155.19950988,0.00021845,2]
[311795340,1705401033824,-261.85697331,0.00021845,2]
[311795341,1705401033833,-224.09395858,0.00021845,2]
[311795342,1705401033842,-162.73106814,0.00021845,2]
[311795343,1705401033852,-156.00661844,0.00021845,2]
[311795344,1705401033862,-2698.75957629,0.00021845,2]
[311795345,1705401033873,-374.3786441,0.00021845,2]
[311795346,1705401033882,-15891.22665678,0.00021845,2]
[311795347,1705401033891,-155.0310062,0.00021845,2]
[311795348,1705401033899,-847.03539949,0.00021846,2]
[311795349,1705401033908,-22012.80011413,0.00021846,2]
[311795350,1705401033917,-19672.51156169,0.00021847,2]
[311795351,1705401033926,-2809.82048294,0.00021847,2]
[311795352,1705401033935,-1000.0,0.00021889,2]
[311795353,1705401033943,-166.722089,0.00021918,2]
[311795354,1705401034042,-425.4475257,0.00022,2]
[311795355,1705401034053,-3945.5094445,0.00022,2]
[311795356,1705401034062,-156.97486621,0.00022,2]
[311795357,1705401034072,-155.96631817,0.00022,2]
[311795358,1705401034081,-154.98450155,0.00022216,4]
[311795359,1705401034090,-1000.05424369,0.00022242,2]
[311795360,1705401034100,-1013.56596388,0.00022336,2]
[311795361,1705401034109,-215.25767397,0.00022346,2]
[311795362,1705401034118,-300.0,0.00022347,2]
[311795363,1705401034128,-166.722089,0.00022559,2]
[311795364,1705401034137,-312.4212651,0.00023114,2]
[311795365,1705401034148,-166.722089,0.000232,2]
[311795366,1705401034158,-154.98450155,0.000235,2]
[311795367,1705401034168,-166.722089,0.00023841,2]
[311795368,1705401034177,-3121.92324585,0.000239,2]
[311795369,1705401034187,-4009.14861516,0.00024,2]
[311795370,1705401034196,-327.61661653,0.0002441,2]
[311795371,1705401034206,-166.722089,0.00024482,2]
[311795372,1705401034215,-4756.4234933,0.0002468,2]
[311795373,1705401034225,-223.13923506,0.0002468,2]
[311795374,1705401034234,-251.36175853,0.00024681,2]
[311795375,1705401034243,-2917.12148947,0.00024681,2]
[311795376,1705401034253,-1939.10443274,0.00024681,2]
[311795377,1705401034262,-1215.27628761,0.00024681,2]
[311795378,1705401034271,-153.083675,0.00024682,2]
[311795379,1705401034280,-151.0,0.00024682,2]
[311795380,1705401034289,-635.985451,0.00024682,2]
[311795381,1705401034299,-635.985451,0.00024682,2]
[311795382,1705401034309,-615.88989266,0.00024682,2]
[311795383,1705401034318,-640.85463619,0.00024682,2]
[311795384,1705401034328,-154.98450155,0.00024682,2]
[311795385,1705401034337,-293.94213474,0.00024682,2]
[311795386,1705401034346,-423.95026392,0.00024682,2]
[311795387,1705401034356,-271.96235488,0.00024682,2]
[311795388,1705401034365,-155.26607378,0.00024682,2]
[311795389,1705401034374,-164.35360079,0.00024682,2]
[311795390,1705401034384,-7990.7979956,0.00024682,2]
[311795391,1705401034394,-571.94518903,0.00024682,2]
[311795392,1705401034404,-5922.20640767,0.00024683,2]
[311795393,1705401034414,-218.770884,0.00024683,2]
[311795394,1705401034423,-155.0,0.00024684,2]
[311795395,1705401034432,-875.01165605,0.00024685,2]
[311795396,1705401034441,-154.98450155,0.00025,2]
[311795397,1705401034451,-391.0,0.00025036,7]
[311795398,1705401034460,-200.0,0.00025479,2]
[311795399,1705401034470,-209.29436,0.00026776,2]
[311795400,1705401034479,-289.85545354,0.00027,2]
[311795401,1705401034489,-461.1686624,0.00027,2]
[311795402,1705401034499,-199.81413446,0.00027028,2]
[311795403,1705401034508,-327.61661653,0.00027074,2]
[311795404,1705401034517,-155.0,0.00027397,2]
[311795405,1705401034527,-200.0,0.0002754,15]
[311795406,1705401034536,-348.0,0.0002754,15]
[311795407,1705401034545,-200.0,0.00028001,2]
[311795408,1705401034555,-155.19735851,0.00028001,2]
[311795409,1705401034564,-2035.80105868,0.00028002,2]
[311795410,1705401034574,-151.0,0.00028013,2]
[311795411,1705401034583,-154.019126,0.00028013,2]
[311795412,1705401034593,-591.703994,0.00028013,2]
[311795413,1705401034602,-591.703994,0.00028013,2]
[311795414,1705401034611,-151.0,0.00028013,2]
[311795415,1705401034621,-635.985451,0.00028013,2]
[311795416,1705401034630,-635.985451,0.00028013,2]
[311795417,1705401034640,-635.985451,0.00028013,2]
[311795418,1705401034649,-635.985451,0.00028013,2]
[311795419,1705401034658,-5000.0,0.00028013,5]
[311795420,1705401034667,-5000.0,0.00028013,5]
[311795421,1705401034678,-5000.0,0.00028013,5]